Cogmind - Beta 13 @@@ ROGUE MODE // 2024.04.05 @ 02:20:56 Player: Aavak Result: Destroyed by X-57 Shotgunner with Shotgun Performance ------------- Evolutions (2) 1000 Regions Visited (7) 1400 Robots Destroyed (46) 230 Value Destroyed (1890) 1890 Prototype IDs (2) 40 Alien Tech Used (0) 0 Bonus (1091) 1091 TOTAL SCORE: 5651 Bonus ------- High Alert Combat Kills 95 Follower Combat Kills 7 Entered Garrisons 200 Used RIF Installer 500 Aligned with FarCom 300 Friendly Fire -11 Cogmind --------- Core Integrity 0/550 Matter 290/300 Energy 130/150 System Corruption 0% Temperature Cool (0) Movement Rolling (150) Ox4 Location -8/Materials Parts ------- > --- POWER (1) -------- Micro Nuclear Core > --- PROPULSION (3) --- Light Treads Armored Wheel > --- UTILITY (5) ------ High-capacity Storage Unit Advanced Visual Processing Unit Signal Interpreter Improved Targeting Computer Relay Coupler [Heavy] (11) > --- WEAPON (2) ------- EM Pulse Cannon > --- INVENTORY (20) --- Light Angular Momentum Engine Large Battery (200) High-capacity Matter Pod (106) Trap Scanner Improved Sensor Array Advanced ECM Suite Improved Medium Armor Plating Improved Medium Armor Plating Relay Coupler [NC] (28) Relay Coupler [Swarmer] (31) Relay Coupler [Grunt] (21) Relay Coupler [Grunt] (25) Trap Reconfigurator Precision Beam Rifle Heavy Assault Rifle Grenade Launcher Heavy Missile Launcher Peak State ------------ > --- POWER ------------ Micro Nuclear Core > --- PROPULSION ------- Light Treads Armored Wheel Armored Wheel > --- UTILITY ---------- High-capacity Storage Unit Advanced Visual Processing Unit Signal Interpreter Improved Targeting Computer Relay Coupler [Heavy] > --- WEAPON ----------- Remote Datajack Chainsword > --- INVENTORY -------- Light Angular Momentum Engine Large Battery High-capacity Matter Pod Trap Scanner Improved Sensor Array Advanced ECM Suite Improved Medium Armor Plating Improved Medium Armor Plating Relay Coupler [NC] Relay Coupler [Swarmer] Relay Coupler [Grunt] Relay Coupler [Grunt] Trap Reconfigurator Precision Beam Rifle EM Pulse Cannon Heavy Assault Rifle Grenade Launcher Heavy Missile Launcher [Rating: 35] Favorites ----------- Power Ion Engine Engine Ion Engine Power Core Micro Nuclear Core Propulsion Armored Wheel Treads Light Treads Wheel Armored Wheel Utility High-capacity Storage Unit Device Sensor Array Storage High-capacity Storage Unit Processor Signal Interpreter Hackware Relay Coupler [Swarmer] Protection Improved Medium Armor Plating Weapon Assault Rifle Energy Cannon EM Pulse Cannon Ballistic Gun Assault Rifle Launcher Grenade Launcher Special Weapon Remote Datajack Slashing Weapon Chainsword Build | -11 -10 -10 -10 -9 -8 -8 -8 ------- Run | Yrd Mat Min Exi Min Mat Gar Mat Slots Evolved 4 | . . . . . 4 . . Power . | . . . . . . . . Propulsion 1 | . . . . . 1 . . Utility 3 | . . . . . 3 . . Weapon . | . . . . . . . . Parts Attached 51 | 7 8 1 . 3 17 10 5 Power 5 | 1 1 . . . 2 1 . Engine 3 | 1 1 . . . 1 . . Core 2 | . . . . . 1 1 . Reactor . | . . . . . . . . Propulsion 10 | 2 2 1 . . 4 . 1 Treads 4 | . 1 1 . . 1 . 1 Leg . | . . . . . . . . Wheel 6 | 2 1 . . . 3 . . Hover . | . . . . . . . . Flight . | . . . . . . . . Utility 19 | 2 2 . . 2 9 2 2 Device 6 | 1 1 . . 1 3 . . Storage 2 | 1 1 . . . . . . Processor 4 | . . . . . 4 . . Hackware 3 | . . . . . . 1 2 Protection 4 | . . . . 1 2 1 . Artifact . | . . . . . . . . Weapon 17 | 2 3 . . 1 2 7 2 Energy Gun . | . . . . . . . . Energy Cannon 5 | . . . . . 2 2 1 Ballistic Gun 5 | 2 2 . . . . 1 . Ballistic Cannon . | . . . . . . . . Launcher 2 | . . . . . . 2 . Special Weapon 3 | . 1 . . . . 1 1 Impact Weapon . | . . . . . . . . Slashing Weapon 2 | . . . . 1 . 1 . Piercing Weapon . | . . . . . . . . Special Melee Weapon . | . . . . . . . . Unidentified Prototypes . | . . . . . . . . Parts Lost 10 | . 1 . . . 4 2 3 Power 3 | . 1 . . . 2 . . Propulsion 4 | . . . . . 2 1 1 Utility . | . . . . . . . . Weapon 3 | . . . . . . 1 2 Highest Loss Streak 2 | . 1 . . . 2 1 2 To Critical Strikes . | . . . . . . . . Average Slot Usage (%) 98 | . 99 100 100 100 99 93 92 Engine 9 | . 14 14 14 14 4 3 . Core 2 | . . . . . 3 5 9 Treads 10 | . 12 14 14 14 8 3 3 Wheel 15 | . 15 14 14 14 17 18 17 Device 10 | . 14 14 14 13 11 3 . Storage 11 | . 14 14 14 14 9 9 9 Processor 10 | . . . . . 24 27 27 Hackware 1 | . . . . . . 3 9 Energy Cannon 1 | . . . . . 6 1 . Ballistic Gun 16 | . 27 28 28 19 2 3 . Special Weapon 1 | . . . . . . 3 8 Slashing Weapon 4 | . . . . 8 9 6 9 Naked Turns . | . . . . . . . . Heaviest Build 61 | 12 49 49 49 53 61 59 52 Greatest Support 24 | 20 20 12 12 12 24 24 24 Greatest Overweight (x) 16 | . 4 4 4 4 16 2 4 Average Overweight (x) 3 | . 3 4 4 4 2 1 2 Largest Inventory Capacity 20 | 8 20 20 20 20 20 20 20 Average Capacity 19 | 7 18 20 20 20 20 20 20 Most Carried 20 | 5 18 20 20 20 20 20 20 Average Carried 18 | 3 11 19 19 19 18 19 18 Final Capacity 20 | 8 20 20 20 20 20 20 20 Final Carried 20 | 5 18 20 20 20 20 20 17 Class Distribution -------------------- 54% | Mutant 30% | Assassin 9% | Bothacker-Mutant 4% | Skirmisher Dominant Class ---------------- Mutant | -10/Materials Mutant | -10/Mines Mutant | -10/Exiles Assassin | -9/Mines Assassin | -8/Materials Assassin | -8/Garrison Bothacker-Mutant | -8/Materials Resources | -11 -10 -10 -10 -9 -8 -8 -8 ----------- Run | Yrd Mat Min Exi Min Mat Gar Mat Matter Collected 1648 | 258 287 188 . 146 161 441 167 Remotely . | . . . . . . . . Salvage Created 1343 | 86 153 33 . . 524 381 166 Parts 100 | 11 9 4 . . 39 28 9 Haulers Intercepted 2 | . . . . . 2 . . Recyclers Shooed . | . . . . . . . . Parts Field Recycled . | . . . . . . . . Retrieved Matter . | . . . . . . . . Parts Self-Destructed . | . . . . . . . . Prevented . | . . . . . . . . Kills | -11 -10 -10 -10 -9 -8 -8 -8 ------- Run | Yrd Mat Min Exi Min Mat Gar Mat Combat Hostiles Destroyed 36 | . 5 2 . . 13 13 3 Melee 12 | . . . . . 9 . 3 Guns 8 | . 5 2 . . . 1 . Cannons 2 | . . . . . 2 . . AOE 14 | . . . . . 2 12 . Classes Destroyed 12 | 2 3 . . . 6 1 . Worker 1 | . . . . . 1 . . Builder 1 | . . . . . 1 . . Tunneler 2 | 2 . . . . . . . Hauler 2 | . . . . . 2 . . Recycler 1 | 1 . . . . . . . Operator 1 | . . . . . 1 . . Watcher 2 | . 1 . . . 1 . . Swarmer 16 | . 3 2 . . 7 4 . Grunt 9 | . 2 . . . 4 3 . Sentry 5 | . . . . . 1 2 2 Hunter 5 | . . . . . 1 3 1 Programmer 1 | . . . . . . 1 . Best Kill Streak 7 | 2 2 2 . . 6 7 1 Combat Bots Only 7 | . 2 2 . . 4 7 1 Max Kills in Single Turn 4 | 1 1 1 . . 3 4 1 Gunslinging . | . . . . . . . . Exploded 4 | . . . . . 1 4 . Melee 1 | . . . . . 1 . 1 Uniques/NPCs Destroyed . | . . . . . . . . Combat | -11 -10 -10 -10 -9 -8 -8 -8 -------- Run | Yrd Mat Min Exi Min Mat Gar Mat Hostile Shots Fired 244 | . 33 7 . . 79 54 71 Missed 77 | . 10 2 . . 23 20 22 Damage Taken 2366 | . 279 44 . . 868 572 603 Core 613 | . 44 10 . . 184 141 234 Absorbed by Shields . | . . . . . . . . Regen/Repaired (Parts) 317 | . 79 . . . 238 . . Core Remaining (%) 89 | 100 . . . 78 . . . Volleys Fired 119 | 8 39 7 . . 12 40 13 Largest 2 | 2 2 2 . . 1 1 1 Hottest 100 | 40 100 40 . . 63 63 5 Shots Fired 168 | 16 73 14 . . 12 40 13 Gun 104 | 16 68 14 . . 1 5 . Cannon 17 | . . . . . 11 6 . Launcher 23 | . . . . . . 23 . Special 24 | . 5 . . . . 6 13 Kinetic 104 | 16 68 14 . . 1 5 . Thermal 5 | . 5 . . . . . . Explosive 23 | . . . . . . 23 . Electromagnetic 17 | . . . . . 11 6 . Robot Hit Streak 10 | 8 6 4 . . 4 10 5 Robot Miss Streak 6 | 1 6 3 . . 3 2 1 Penetration Max . | . . . . . . . . Secondary Targets . | . . . . . . . . Shots Hit Robots 124 | 11 32 7 . . 26 25 23 Core Hits 58 | 4 10 3 . . 15 22 4 Critical Kills . | . . . . . . . . Critical Parts Destroyed . | . . . . . . . . Critical Strikes 2 | . . . . . . . 2 Sever 2 | . . . . . . . 2 Melee Attacks 73 | . . . . . 48 8 17 Impact . | . . . . . . . . Slashing 73 | . . . . . 48 8 17 Piercing . | . . . . . . . . Sneak Attacks 2 | . . . . . 2 . . Combat Hostiles . | . . . . . . . . Follow-up Attacks . | . . . . . . . . Damage Inflicted 3767 | 113 362 83 . . 1399 1345 465 Guns 622 | 113 359 83 . . . 67 . Cannons 246 | . . . . . 176 70 . Explosions 1458 | . . . . . 468 990 . Melee 1433 | . . . . . 755 218 460 Ramming 8 | . 3 . . . . . 5 Kinetic 622 | 113 359 83 . . . 67 . Thermal 468 | . . . . . 468 . . Explosive 990 | . . . . . . 990 . Electromagnetic 246 | . . . . . 176 70 . Impact . | . . . . . . . . Slashing 1433 | . . . . . 755 218 460 Piercing . | . . . . . . . . Highest Corruption . | . . . . . . . . Average Corruption . | . . . . . . . . Corruption Purged . | . . . . . . . . Corruption Blocked . | . . . . . . . . Overload Shots . | . . . . . . . . Overflow Damage 386 | . . . . . 234 144 8 Projectiles . | . . . . . . . . Explosions 223 | . . . . . 167 56 . Melee 163 | . . . . . 67 88 8 Knockbacks . | . . . . . . . . Impact . | . . . . . . . . Kinetic . | . . . . . . . . Secondary . | . . . . . . . . Self-Inflicted Damage 219 | . 1 . . . 153 63 2 Shots 5 | . . . . . 3 2 . Rammed 2 | . 1 . . . . . 1 Targets Rammed 2 | . 1 . . . . . 1 Kicked . | . . . . . . . . Crushed . | . . . . . . . . Highest Temperature 84 | . 27 . . . 84 42 . Average Temperature 19 | . 11 . . . 29 17 . Received Heat Transfer 402 | . 132 . . . 216 27 27 Siege Activations . | . . . . . . . . Robots Corrupted . | . . . . . . . . Combat Hostiles . | . . . . . . . . Parts Fried . | . . . . . . . . Impact Corruptions . | . . . . . . . . Robots Melted . | . . . . . . . . Combat Hostiles . | . . . . . . . . Parts Melted 1 | . . . . . 1 . . Heat Transferred 350 | . . . . . 350 . . Parts Sabotaged . | . . . . . . . . Parts Stolen . | . . . . . . . . Parts Stripped . | . . . . . . . . Power Chain Reactions 2 | . . . . . 2 . . Alert | -11 -10 -10 -10 -9 -8 -8 -8 ------- Run | Yrd Mat Min Exi Min Mat Gar Mat Peak Influence 895 | 15 111 50 . . 207 895 579 Initial 436 | . 9 10 . . . 106 436 Average 169 | 4 45 6 . . 103 545 458 Maximum Alert Level 3 | . . . . . 1 3 2 Low Security (%) 75 | 100 100 100 . 100 95 14 . Level 1 3 | . . . . . 4 8 17 Level 2 17 | . . . . . . 60 82 Level 3 3 | . . . . . . 16 . Level 4 . | . . . . . . . . Level 5 . | . . . . . . . . High Security . | . . . . . . . . Max Security . | . . . . . . . . Squads Dispatched 7 | . . . . 1 4 . 2 Investigation 5 | . . . . 1 3 . 1 Extermination . | . . . . . . . . Reinforcement 2 | . . . . . 1 . 1 Assault . | . . . . . . . . Garrison . | . . . . . . . . Intercept . | . . . . . . . . Searches Triggered . | . . . . . . . . Construction Impeded . | . . . . . . . . Haulers Reinforced . | . . . . . . . . Active Scanning Responses . | . . . . . . . . Cargo Convoy Interrupts . | . . . . . . . . Stealth | -11 -10 -10 -10 -9 -8 -8 -8 --------- Run | Yrd Mat Min Exi Min Mat Gar Mat Distress Signals 6 | . . . . . 4 . 2 Communications Jammed . | . . . . . . . . Distress Signals . | . . . . . . . . Times Spotted 68 | . 13 4 . . 24 16 11 Peak Tracking Total 7 | . 3 3 . . 6 5 7 Tactical Retreats 6 | . 2 . . . 3 . 1 Traps | -11 -10 -10 -10 -9 -8 -8 -8 ------- Run | Yrd Mat Min Exi Min Mat Gar Mat Traps Triggered 10 | . . . . . . 10 . Indirectly . | . . . . . . . . Trap Hack Attempts . | . . . . . . . . Triggered . | . . . . . . . . Disarmed . | . . . . . . . . Reprogrammed . | . . . . . . . . Reused . | . . . . . . . . Traps Extracted . | . . . . . . . . Installed . | . . . . . . . . Triggered . | . . . . . . . . Machines | -11 -10 -10 -10 -9 -8 -8 -8 ---------- Run | Yrd Mat Min Exi Min Mat Gar Mat Machines Disabled 10 | . 1 . . . 3 6 . Max in Single Turn 3 | . 1 . . . 3 1 . Garrison Relay 3 | . . . . . . 3 . Machines Repaired . | . . . . . . . . Machines Dismantled . | . . . . . . . . Machines Sabotaged . | . . . . . . . . Overloaded Fab Kills . | . . . . . . . . Hacking | -11 -10 -10 -10 -9 -8 -8 -8 --------- Run | Yrd Mat Min Exi Min Mat Gar Mat Machines Accessed 32 | . 9 1 4 1 11 2 4 Terminals 19 | . 6 1 . . 8 2 2 Fabricators . | . . . . . . . . Repair Stations 3 | . 1 . . . 2 . . Recycling Units 3 | . 2 . . . . . 1 Scanalyzers 1 | . . . . . . . 1 Garrison Access 1 | . . . . . 1 . . Total Hacks 145 | . 31 2 49 1 42 4 16 Successful 107 | . 19 2 49 1 24 . 12 Failed 38 | . 12 . . . 18 4 4 Catastrophic 6 | . 3 . . . 2 1 . Database Lockouts . | . . . . . . . . Manual 55 | . 19 1 1 . 24 4 6 Terminals 67 | . 23 2 . . 30 4 8 Fabricators . | . . . . . . . . Repair Stations 12 | . 3 . . . 9 . . Recycling Units 8 | . 5 . . . . . 3 Scanalyzers 5 | . . . . . . . 5 Garrison Access 3 | . . . . . 3 . . Terminal Hacks 65 | . 5 1 49 1 6 . 3 Record 54 | . 1 . 49 . 2 . 2 Open Door 1 | . . . . 1 . . . Branch Access Points 1 | . 1 . . . . . . Emergency Access Points 1 | . 1 . . . . . . Terminal Index 3 | . 1 . . . 1 . 1 Alert Level 1 | . . . . . 1 . . Hauler Manifests 1 | . 1 . . . . . . Zone Layout 3 | . . 1 . . 2 . . Fabricator Hacks . | . . . . . . . . Repair Station Hacks 9 | . 3 . . . 6 . . Scan Component 5 | . 2 . . . 3 . . Repair 4 | . 1 . . . 3 . . Recycling Unit Hacks 6 | . 4 . . . . . 2 Report Inventory 3 | . 2 . . . . . 1 Retrieve Matter 2 | . 1 . . . . . 1 Retrieve Components 1 | . 1 . . . . . . Scanalyzer 4 | . . . . . . . 4 Insert Component 2 | . . . . . . . 2 Analyze 2 | . . . . . . . 2 Garrison Access Hacks 1 | . . . . . 1 . . Unlock Access 1 | . . . . . 1 . . Unauthorized Hacks 22 | . 7 1 . . 11 . 3 Terminals 22 | . 7 1 . . 11 . 3 Track 4 | . 2 . . . 2 . . Assimilate 2 | . 1 . . . 1 . . Botnet 12 | . 3 1 . . 6 . 2 Operators 4 | . 1 . . . 2 . 1 Fabricators . | . . . . . . . . Repair Stations . | . . . . . . . . Recycling Units . | . . . . . . . . Scanalyzers . | . . . . . . . . Garrison Access . | . . . . . . . . Data Cores Recovered . | . . . . . . . . Used . | . . . . . . . . Hacking Detections 25 | . 7 1 . . 11 2 4 Full Trace Events 5 | . . . . . 3 1 1 Feedback Events . | . . . . . . . . Feedback Blocked . | . . . . . . . . Robot Schematics Acquired . | . . . . . . . . Robots Built . | . . . . . . . . Authchips . | . . . . . . . . Time . | . . . . . . . . Total Robot Build Rating . | . . . . . . . . Part Schematics Acquired 1 | . . . . . . . 1 Parts Built . | . . . . . . . . Authchips . | . . . . . . . . Time . | . . . . . . . . Total Part Build Rating . | . . . . . . . . Parts Repaired 4 | . 1 . . . 3 . . Time 122 | . 26 . . . 96 . . Parts Recycled . | . . . . . . . . Recycled Matter . | . . . . . . . . Retrieved Matter . | . . . . . . . . Retrieved Components 6 | . 6 . . . . . . Parts Scanalyzed 1 | . . . . . . . 1 Part Schematics Acquired 1 | . . . . . . . 1 Parts Damaged 1 | . . . . . . . 1 Bothacking | -11 -10 -10 -10 -9 -8 -8 -8 ------------ Run | Yrd Mat Min Exi Min Mat Gar Mat Used RIF Installer 1 | . . . . . . 1 . Robots Hacked 11 | . . . . . . 2 9 Non-combat 7 | . . . . . . . 7 Combat 4 | . . . . . . 2 2 Robot Hacks Applied 12 | . . . . . . 3 9 parse_system 6 | . . . . . . 1 5 no_distress 1 | . . . . . . . 1 generate_echo 1 | . . . . . . . 1 link_fov 2 | . . . . . . . 2 streamctrl_high 1 | . . . . . . 1 . formatsys_high 1 | . . . . . . 1 . Relay Couplers Released 15 | . . . . . . 15 . Machine Destruction 11 | . . . . . . 11 . Programmers 4 | . . . . . . 4 . Attached 3 | . . . . . . 1 2 Fabnet Peak Effective % . | . . . . . . . . Robots Rewired . | . . . . . . . . Allies Hacked . | . . . . . . . . Hacks Repelled . | . . . . . . . . Allies | -11 -10 -10 -10 -9 -8 -8 -8 -------- Run | Yrd Mat Min Exi Min Mat Gar Mat Total Allies 3 | . 1 . . . . 2 . Largest Group 1 | . 1 1 1 1 1 1 . Highest-Rated Group 10 | . 10 10 9 9 9 5 . Highest-Rated Ally 10 | . 10 10 9 9 9 5 . Total Orders 1 | . . . . . . 1 . AID 1 | . . . . . . 1 . Ally Attacks 3 | . . . . . . 3 . Total Damage 17 | . . . . . . 17 . Kills 1 | . . . . . . 1 . Allies Corrupted . | . . . . . . . . Allies Melted . | . . . . . . . . Intel | -11 -10 -10 -10 -9 -8 -8 -8 ------- Run | Yrd Mat Min Exi Min Mat Gar Mat Robot Analysis Total . | . . . . . . . . Derelict Logs Recovered 2 | . . 2 . . . . . Drone Launches . | . . . . . . . . Drone Recoveries . | . . . . . . . . Exploration | -11 -10 -10 -10 -9 -8 -8 -8 ------------- Run | Yrd Mat Min Exi Min Mat Gar Mat Turns Passed 7726 | 81 1167 1268 1251 853 1393 1230 483 Spaces Moved 4762 | 51 724 810 834 550 700 802 291 Core 4 | 3 . . . . 1 . . Treads 4 | . 1 . . . 3 . . Legs . | . . . . . . . . Wheels 4754 | 48 723 810 834 550 696 802 291 Hover . | . . . . . . . . Flight . | . . . . . . . . Fastest Speed 50 | 50 80 150 150 150 120 105 120 Average Speed 135 | 78 129 150 150 150 122 119 121 Slowest Speed 850 | 80 320 150 150 150 850 120 150 Overloaded Moves . | . . . . . . . . Propulsion Burnouts . | . . . . . . . . Robots Hopped . | . . . . . . . . Cave-ins Triggered . | . . . . . . . . Exploration Rate (%) 65 | 3 95 92 94 87 52 72 27 Regions Visited 7 Branch Regions 3 Pre-discovered Areas 2 | . . 1 1 . . . . Known Exits Taken 2 | . 1 . . . 1 . . Unknown Exits Taken 4 | 1 . 1 1 1 . . . Scrap Searched 2 | . . 1 . 1 . . . Spaces Dug 21 | . 5 . . . 14 1 1 Terrain Destroyed 199 | . 5 . . . 47 146 1 Melee 15 | . . . . . 14 . 1 Projectile 5 | . 5 . . . . . . AOE 179 | . . . . . 33 146 . Terrain Rammed . | . . . . . . . . Walls Destroyed . | . . . . . . . . Machines Disabled . | . . . . . . . . Actions | -11 -10 -10 -10 -9 -8 -8 -8 --------- Run | Yrd Mat Min Exi Min Mat Gar Mat Total 5775 | 76 877 852 835 578 1152 1019 386 Wait 613 | . 80 26 . 20 357 72 58 Move 4755 | 50 723 809 833 549 699 801 291 Hop . | . . . . . . . . Pick Up 65 | 10 19 5 1 3 14 12 1 Fast Attach 5 | 3 . . . . 1 1 . Attach 18 | 4 3 . . . 8 1 2 Detach 1 | . 1 . . . . . . Swap 28 | . 5 1 . 3 8 8 3 Drop 32 | 1 6 4 1 3 5 12 . Fire 119 | 8 39 7 . . 12 40 13 Melee 73 | . . . . . 48 8 17 Ram 2 | . 1 . . . . . 1 Kick . | . . . . . . . . Crush . | . . . . . . . . Escape Stasis 64 | . . . . . . 64 . Rewire . | . . . . . . . . Trap . | . . . . . . . . Miscellaneous . | . . . . . . . . Route ------- -11/Scrapyard -10/Materials (discovered 5 exits: *Mat x3 / *Min x2) -10/Mines (discovered 2 exits: *Mat / *Exi) -10/Exiles (discovered 2 exits: *Min x2) -9/Mines (discovered 2 exits: *Mat x2) -8/Materials (discovered 2 exits: *Fac / Gar) -8/Garrison (discovered 2 exits: *Mat x2) -8/Materials (discovered 2 exits: *Fac / *Sto) History --------- Turn | Location | Event 10 | -11/Scrapyard | Discovered new exit (range 16) 82 | -11/Scrapyard | Entered Materials 292 | -10/Materials | Discovered new exit (range 7) 301 | -10/Materials | Build established: Mutant 481 | -10/Materials | Discovered new exit (range 12) 538 | -10/Materials | Discovered new exit (range 13) 615 | -10/Materials | Discovered new exit (range 14) 863 | -10/Materials | Discovered new exit (range 3) 969 | -10/Materials | Repaired Assault Rifle 1042 | -10/Materials | Identified exit to Mines 1249 | -10/Materials | Entered Mines 1249 | -10/Mines | Accompanied by 1 ally 1362 | -10/Mines | YI-UF0 nonchalantly dropped a Grenade Launcher on the ground 1594 | -10/Mines | Identified exit to Materials 1622 | -10/Mines | Learned location of Recycling (-8) 1637 | -10/Mines | Deemed a non-threat by the Exiles lab entrance 1637 | -10/Mines | Discovered new exit (range 5) 2261 | -10/Mines | Joined a pair of Derelicts in attacking an 0b10 outpost 2517 | -10/Mines | Entered Exiles 2517 | -10/Exiles | Accompanied by 1 ally 2541 | -10/Exiles | Discovered new exit (range 14) 2589 | -10/Exiles | Met 8R-AWN 2619 | -10/Exiles | Met EX-HEX 2760 | -10/Exiles | Met EX-DEC 2809 | -10/Exiles | Visited The Gauntlet 3086 | -10/Exiles | Met EX-BIN 3104 | -10/Exiles | Aligned with FarCom system 3105 | -10/Exiles | Given EX-Vault access code 3266 | -10/Exiles | Learned location of Zion (-7) 3354 | -10/Exiles | Discovered new exit (range 14) 3501 | -10/Exiles | Opened EX-Vault 3511 | -10/Exiles | Found Prototype Device 3545 | -10/Exiles | Warned to stay clear of 0b10 Research branches 3768 | -10/Exiles | Left Exiles lab with Trap Reconfigurator 3768 | -10/Exiles | Entered Mines 3768 | -9/Mines | Accompanied by 1 ally 3979 | -9/Mines | Discovered new exit (range 5) 4048 | -9/Mines | Discovered new exit (range 14) 4063 | -9/Mines | Build established: Skirmisher 4080 | -9/Mines | Met a Derelict shopkeep closing up shop 4143 | -9/Mines | Received a Rocket Launcher from a helpful Derelict 4354 | -9/Mines | Found a hidden stash of uninstalled traps 4450 | -9/Mines | Build established: Assassin 4621 | -9/Mines | Entered Materials 4621 | -8/Materials | Accompanied by 1 ally 4621 | -8/Materials | Evolved 4 slots: Propulsion x1, Utility x3 5612 | -8/Materials | Repaired Arm. Wheel 5656 | -8/Materials | Repaired EM Pulse Cannon 5687 | -8/Materials | Repaired Assault Rifle 5776 | -8/Materials | Discovered new exit (range 7) 5843 | -8/Materials | Identified exit to Factory 6013 | -8/Materials | Identified exit to Garrison 6014 | -8/Materials | Entered Garrison 6290 | -8/Garrison | Triggered checkpoint 6345 | -8/Garrison | Destroyed 7 combat bots 6372 | -8/Garrison | Discovered new exit (range 9) 6410 | -8/Garrison | Identified exit to Materials 6486 | -8/Garrison | Triggered checkpoint 6647 | -8/Garrison | Installed Relay Interface Framework 6676 | -8/Garrison | Discovered exit to Materials (range 11) 6835 | -8/Garrison | Build established: Mutant 6887 | -8/Garrison | Core integrity fell below 50% 6938 | -8/Garrison | Garrison Relay disabled 7037 | -8/Garrison | Garrison Relay disabled 7085 | -8/Garrison | Garrison Relay disabled 7244 | -8/Garrison | Entered Materials 7265 | -8/Materials | Build established: Bothacker-Mutant 7388 | -8/Materials | Discovered new exit (range 20) 7410 | -8/Materials | Identified exit to Storage 7500 | -8/Materials | Identified Trap Reconfigurator 7619 | -8/Materials | Discovered exit to Factory (range 20) 7702 | -8/Materials | Core integrity fell below 20% 7727 | -8/Materials | Destroyed by X-57 Shotgunner with Shotgun Last Messages --------------- 07678_ Arm. Wheel destroyed. 07681_ Penetrated by Slug. 07684_ H-55 Commando destroyed. 07686_ Acquired 56 matter. 07688_ U-05 Engineer builds a Door. 07691_ Slammed into U-05 Engineer. 07696_ U-05 Engineer builds a Wall. 07697_ Knocked back. 07698_ Acquired 1 matter. 07704_ W-25 Informer sends out distress signal. 07714_ Jacked X-57 Shotgunner... >>parse_system Reading system data... 07715_ Remote Datajack destroyed. 07716_ X-57 Shotgunner Hrd. Medium Armor Plating severed. 07721_ Atomic Centrifuge disabled. 07722_ X-57 Shotgunner Hpw. Shotgun severed. 07724_ Slug penetrates Atomic Centrifuge. 07725_ Chainsword destroyed. [Achievement: 5k Club] Map ----- +----------------------------------------------------+ | ???????????????????????????? | | ???????????????????????????? | | ???????????????????????????? | | ???????????????????????????? | | ???????????????o???????????? | | ???????????????????????????? | | ??????????? ??????????????? | | ??????????? ??????????????? | | ??????????? ??????????????? | | ??????????? ??????????????? | | ??????????# ##????????????? | | ?????????? #????????????? | | ?????????? ?????????????? | | ?????????? ?????????????? | | ?????????? ?????????????? | | ??????????# #?????????????? | | ??????????# #?????????????? | | ??????????# #?????????????? | | ??????????# #??##?????????? | | ?????????## ##? ??????????? | | ?????????# # ??????????? | | ?????????# # ???????????? | | ?????????# +????????????? | | ????????##! #????????????? | | ?########## ##??????????### | | #s%@[x # #???????????# | | # xH"""g/ ######???? # " | | #s""" """ # # # " | | # """ """ # ! + # " | | # ####### # # | | # [ #?????# #???? # | | # #?????# #??????# | | # #?????# #??????# | | ###########???###+######## | | ??????????????# #### | | ??????????????# """ #??? | | ??????????????# "Y """ #??? | | ??????????????# """ """ #??? | | ??????????????# """ + | | ??????????????# #### | | ??????????????# #??# | | ??????????????# #??# | | ?????#############/######### | | ?????# # | | ?????# < + | | ?????# # | | ?????############ ######## | | ????????????????# #??????# | | ????????????????# #??????# | | ????????????????# ######## | +----------------------------------------------------+ Best States ------------- Heat Dissipation 31 Energy Generation 15 Energy Capacity 250 Matter Stores 300 Matter Capacity 300 Sight Range 20 Robot Scan Range 15 Terrain Scan Density 10 ECM Strength 2 Armor Coverage 225 Evasion (%) 44 Targeting Accuracy 6 Recoil Reduction 1 Relay Coupler Types 1 Relay Coupler Value 29 Item Schematics ----------------- Prc. Beam Rifle | -8/Materials | Scanalyzed Robot Schematics ------------------ None Fabricated ------------ Nothing Alien Tech Used ----------------- None Achievements -------------- 5k Club Assimilation Complete Challenges ------------ None Game ------ Seed VortexNeutrinoCleaver Manual? 0 Play Time 02:10:40 Cumulative 7.1 hours Start 2024.04.04 @ 21:16:18 End 2024.04.05 @ 02:20:56 Sessions 1 Manual Loads 0 Difficulty Rogue Special Mode None Game No. 7 Rogue 7 Adventurer 0 Explorer 0 Win Type - Total 0 Types 0/0/0/0/0/0/0/0/0 Lore% 13 Gallery% 9 Achievement% 12 Wizard Run 0 Options --------- Layout 0 ASCII 0 Keyboard 0 Movement Mouse Keybinds 0 Fullscreen 1 Font 18/SmallcapsGlow Map View 76x50 Zoom Use 0% Tactical HUD 1 Map Filters NONE Filters NONE Steam 1 RUN: f6082d11-4583-4443-9435-a7dbad57c5e8